[Event "29. Klatovy C 2023"]
[Site "Klatovy"]
[Date "2023.07.07"]
[Round "7.2"]
[White "Petras, Milan"]
[Black "Turner, Radek"]
[Result "0-1"]
[ECO "E72"]
[WhiteElo "1866"]
[BlackElo "1991"]
[PlyCount "100"]
[EventDate "2023.07.01"]
[EventType "swiss"]
[EventRounds "9"]
[EventCountry "CZE"]
[TimeControl "120+30"]

1. e4 {[%emt 0:11:58]} g6 {[%emt 0:00:21]} 2. g3 {[%emt 0:01:00]} Bg7 {[%emt 0:00:16]} 3. Bg2 {[%emt 0:00:03]} d6 {[%emt 0:00:24]} 4. d4 {[%emt 0:00:59]} Nf6 {[%emt 0:06:06]} 5. c4 {[%emt 0:03:04]} c5 {[%emt 0:01:37]} 6. d5 {[%emt 0:02:41]} O-O {[%emt 0:00:28]} 7. Nc3 {[%emt 0:00:13]} Na6 {[%emt 0:00:49]} 8. Nge2 {[%emt 0:16:35]} Nc7 {[%emt 0:00:47]} 9. a4 {[%emt 0:08:48]} Rb8 {[%emt 0:00:45]} 10. O-O {[%emt 0:18:32]} a6 {[%emt 0:03:01]} 11. f4 {[%emt 0:02:02]} b5 {[%emt 0:00:54]} 12. axb5 {[%emt 0:06:55]} axb5 {[%emt 0:00:38]} 13. cxb5 {[%emt 0:00:07]} Nxb5 {[%emt 0:00:33]} 14. Kh1 {[%emt 0:07:11]} Bg4 {[%emt 0:01:33]} 15. Bf3 {[%emt 0:09:54]} Nxc3 {[%emt 0:01:27]} 16. Nxc3 {[%emt 0:01:03]} Bxf3+ {[%emt 0:02:25]} 17. Rxf3 {[%emt 0:02:29]} Nd7 {[%emt 0:00:27]} 18. Qe2 {[%emt 0:08:38]} Ra8 {[%emt 0:02:18]} 19. Na4 {[%emt 0:11:49]} Qa5 {[%emt 0:04:47]} 20. Bd2 {[%emt 0:02:19]} Qa6 {[%emt 0:00:19]} 21. Qxa6 {[%emt 0:03:07]} Rxa6 {[%emt 0:01:25]} 22. Rfa3 {[%emt 0:01:03]} Rfa8 {[%emt 0:02:12]} 23. Bc3 {[%emt 0:01:18]} Nf6 {[%emt 0:03:43]} 24. Nb6 {[%emt 0:05:40]} Rxa3 {[%emt 0:00:54]} 25. Rxa3 {[%emt 0:00:03]} Rb8 {[%emt 0:01:13]} 26. Bxf6 {[%emt 0:04:35]} Bxf6 {[%emt 0:00:28]} 27. Nd7 {[%emt 0:00:04]} Bxb2 {[%emt 0:00:19]} 28. Ra7 {[%emt 0:01:10]} Rd8 {[%emt 0:16:57]} 29. e5 {[%emt 0:00:18]} dxe5 {[%emt 0:02:06]} 30. fxe5 {[%emt 0:00:02]} Bd4 {[%emt 0:08:45]} 31. Rc7 {[%emt 0:00:33]} Ra8 {[%emt 0:06:42]} 32. e6 {[%emt 0:00:41]} fxe6 {[%emt 0:00:29]} 33. dxe6 {[%emt 0:00:05]} Ra6 {[%emt 0:02:57]} 34. Rc8+ {[%emt 0:01:43]} Kg7 {[%emt 0:00:14]} 35. Nf8 {[%emt 0:00:07]} Rd6 {[%emt 0:00:54]} 36. Re8 {[%emt 0:00:52]} Bf6 {[%emt 0:04:05]} 37. Rc8 {[%emt 0:00:13]} c4 {[%emt 0:05:57]} 38. Nd7 {[%emt 0:00:22]} Rd4 {[%emt 0:00:42]} 39. Kg2 {[%emt 0:01:00]} g5 {[%emt 0:01:52]} 40. h3 {[%emt 0:00:30]} h5 {[%emt 0:00:34]} 41. Kf3 {[%emt 0:00:35]} Rd3+ {[%emt 0:00:15]} 42. Kg2 {[%emt 0:00:38]} c3 {[%emt 0:00:56]} 43. g4 {[%emt 0:00:01]} hxg4 {[%emt 0:00:28]} 44. hxg4 {[%emt 0:00:01]} Rd2+ {[%emt 0:00:41]} 45. Kh3 {[%emt 0:00:37]} c2 {[%emt 0:00:24]} 46. Rf8 {[%emt 0:00:33]} c1=Q {[%emt 0:02:35]} 47. Rf7+ {[%emt 0:00:30]} Kh8 {[%emt 0:00:25]} 48. Rf8+ {[%emt 0:00:41]} Kh7 {[%emt 0:00:28]} 49. Rf7+ {[%emt 0:01:08]} Bg7 {[%emt 0:00:21]} 50. Nf8+ {[%emt 0:00:36]} Kh6 {[%emt 0:00:10]} 0-1

[Event "29. Klatovy C 2023"]
[Site "Klatovy"]
[Date "2023.07.07"]
[Round "7.3"]
[White "Sedlak, Ludek"]
[Black "Kucera, Jiri"]
[Result "1-0"]
[ECO "C50"]
[WhiteElo "1885"]
[BlackElo "1920"]
[PlyCount "89"]
[EventDate "2023.07.01"]
[EventType "swiss"]
[EventRounds "9"]
[EventCountry "CZE"]
[TimeControl "120+30"]

1. e4 {[%emt 0:00:03]} e5 {[%emt 0:00:32]} 2. Nf3 {[%emt 0:02:39]} Nc6 {[%emt 0:01:18]} 3. Bc4 {[%emt 0:06:13]} Be7 {[%emt 0:04:53]} 4. d4 {[%emt 0:01:30]} d6 {[%emt 0:00:13]} 5. h3 {[%emt 0:00:31]} Nf6 {[%emt 0:00:19]} 6. Nc3 {[%emt 0:01:21]} O-O {[%emt 0:02:25]} 7. O-O {[%emt 0:07:09]} Nxe4 {[%emt 0:16:33]} 8. Nxe4 {[%emt 0:13:36]} d5 {[%emt 0:00:05]} 9. Nxe5 {[%emt 0:07:36]} Nxe5 {[%emt 0:04:12]} 10. dxe5 {[%emt 0:00:35]} dxe4 {[%emt 0:11:45]} 11. Be3 {[%emt 0:02:55]} Bf5 {[%emt 0:04:36]} 12. g4 {[%emt 0:17:35]} Be6 {[%emt 0:06:59]} 13. Qxd8 {[%emt 0:01:01]} Raxd8 {[%emt 0:01:31]} 14. Bxe6 {[%emt 0:00:37]} fxe6 {[%emt 0:00:01]} 15. Rfd1 {[%emt 0:00:36]} Rd5 {[%emt 0:01:03]} 16. Rxd5 {[%emt 0:00:53]} exd5 {[%emt 0:00:06]} 17. Rd1 {[%emt 0:00:26]} Rd8 {[%emt 0:03:33]} 18. Kg2 {[%emt 0:03:32]} Kf7 {[%emt 0:01:02]} 19. f3 {[%emt 0:00:42]} exf3+ {[%emt 0:00:29]} 20. Kxf3 {[%emt 0:00:10]} Ke6 {[%emt 0:00:04]} 21. Bf2 {[%emt 0:21:22]} Rf8+ {[%emt 0:06:40]} 22. Ke2 {[%emt 0:00:16]} c5 {[%emt 0:01:39]} 23. Bg3 {[%emt 0:00:20]} Bg5 {[%emt 0:02:30]} 24. h4 {[%emt 0:04:12]} Bf4 {[%emt 0:04:22]} 25. Rf1 {[%emt 0:06:28]} Kxe5 {[%emt 0:00:10]} 26. c4 {[%emt 0:02:27]} dxc4 {[%emt 0:05:56]} 27. Rxf4 {[%emt 0:00:20]} Rf6 {[%emt 0:11:41]} 28. Rxf6+ {[%emt 0:03:55]} Kxf6 {[%emt 0:00:02]} 29. Bb8 {[%emt 0:01:36]} a6 {[%emt 0:02:08]} 30. Ke3 {[%emt 0:00:28]} h5 {[%emt 0:01:11]} 31. gxh5 {[%emt 0:00:57]} Kf5 {[%emt 0:00:01]} 32. Kf3 {[%emt 0:00:27]} b5 {[%emt 0:00:19]} 33. Bd6 {[%emt 0:01:10]} b4 {[%emt 0:00:38]} 34. Bxc5 {[%emt 0:00:28]} c3 {[%emt 0:00:04]} 35. bxc3 {[%emt 0:00:18]} bxc3 {[%emt 0:00:02]} 36. Bd4 {[%emt 0:04:03]} c2 {[%emt 0:00:02]} 37. Bb2 {[%emt 0:00:08]} a5 {[%emt 0:01:11]} 38. a4 {[%emt 0:00:14]} g5 {[%emt 0:03:10]} 39. h6 {[%emt 0:01:25]} g4+ {[%emt 0:00:10]} 40. Kg3 {[%emt 0:00:07]} Kg6 {[%emt 0:00:04]} 41. Kxg4 {[%emt 0:00:07]} Kxh6 {[%emt 0:00:01]} 42. Bc1+ {[%emt 0:00:16]} Kg6 {[%emt 0:00:06]} 43. h5+ {[%emt 0:00:13]} Kf6 {[%emt 0:02:25]} 44. Kf3 {[%emt 0:00:30]} Kf5 {[%emt 0:01:44]} 45. Ke2 {[%emt 0:00:18]} 1-0

[Event "29. Klatovy C 2023"]
[Site "Klatovy"]
[Date "2023.07.07"]
[Round "7.4"]
[White "Plasek, Zdenek"]
[Black "Novotny, Jaroslav2"]
[Result "1/2-1/2"]
[ECO "D02"]
[WhiteElo "1914"]
[BlackElo "1890"]
[PlyCount "110"]
[EventDate "2023.07.01"]
[EventType "swiss"]
[EventRounds "9"]
[EventCountry "CZE"]
[TimeControl "120+30"]

1. Nf3 {[%emt 0:09:31]} Nf6 {[%emt 0:00:32]} 2. g3 {[%emt 0:00:08]} d5 {[%emt 0:03:07]} 3. Bg2 {[%emt 0:00:11]} Bf5 {[%emt 0:02:10]} 4. d4 {[%emt 0:00:55]} h6 {[%emt 0:01:11]} 5. c4 {[%emt 0:00:17]} e6 {[%emt 0:00:53]} 6. Qb3 {[%emt 0:00:18]} Qc8 {[%emt 0:13:58]} 7. Ne5 {[%emt 0:02:18]} c6 {[%emt 0:03:12]} 8. Nc3 {[%emt 0:00:18]} Nbd7 {[%emt 0:04:37]} 9. O-O {[%emt 0:04:57]} Nxe5 {[%emt 0:01:53]} 10. dxe5 {[%emt 0:00:02]} Nd7 {[%emt 0:00:15]} 11. cxd5 {[%emt 0:04:25]} exd5 {[%emt 0:01:38]} 12. f4 {[%emt 0:01:08]} Bc5+ {[%emt 0:00:49]} 13. Kh1 {[%emt 0:00:08]} O-O {[%emt 0:01:08]} 14. e4 {[%emt 0:00:18]} dxe4 {[%emt 0:01:44]} 15. Nxe4 {[%emt 0:00:23]} Be7 {[%emt 0:01:23]} 16. Be3 {[%emt 0:02:33]} Rd8 {[%emt 0:13:21]} 17. a4 {[%emt 0:04:04]} Bxe4 {[%emt 0:05:33]} 18. Bxe4 {[%emt 0:00:03]} Nc5 {[%emt 0:00:17]} 19. Bxc5 {[%emt 0:05:11]} Bxc5 {[%emt 0:00:02]} 20. Bg6 {[%emt 0:00:16]} Rd5 {[%emt 0:01:32]} 21. Be4 {[%emt 0:00:54]} Rd4 {[%emt 0:02:01]} 22. Qc2 {[%emt 0:01:02]} Qf8 {[%emt 0:11:56]} 23. Rfd1 {[%emt 0:09:49]} Rad8 {[%emt 0:00:28]} 24. Rxd4 {[%emt 0:01:49]} Rxd4 {[%emt 0:00:11]} 25. Rd1 {[%emt 0:00:02]} Qd8 {[%emt 0:01:07]} 26. Rd3 {[%emt 0:01:41]} Rxd3 {[%emt 0:03:00]} 27. Qxd3 {[%emt 0:00:05]} Qxd3 {[%emt 0:01:13]} 28. Bxd3 {[%emt 0:00:29]} Bd4 {[%emt 0:00:31]} 29. b3 {[%emt 0:00:24]} b6 {[%emt 0:01:21]} 30. Kg2 {[%emt 0:01:11]} Kf8 {[%emt 0:00:17]} 31. Kf3 {[%emt 0:00:03]} Ke7 {[%emt 0:00:49]} 32. Ke4 {[%emt 0:00:34]} Bg1 {[%emt 0:00:57]} 33. h3 {[%emt 0:00:06]} Bf2 {[%emt 0:01:00]} 34. Kf3 {[%emt 0:00:40]} Bd4 {[%emt 0:00:18]} 35. Be4 {[%emt 0:01:09]} Kd7 {[%emt 0:01:32]} 36. Bf5+ {[%emt 0:00:11]} Ke7 {[%emt 0:02:18]} 37. Ke4 {[%emt 0:05:50]} Bc3 {[%emt 0:00:32]} 38. Bc8 {[%emt 0:00:24]} a5 {[%emt 0:02:13]} 39. Ba6 {[%emt 0:00:13]} Be1 {[%emt 0:01:16]} 40. g4 {[%emt 0:00:35]} Bc3 {[%emt 0:00:46]} 41. Bb7 {[%emt 0:01:08]} Kd7 {[%emt 0:01:43]} 42. Kf5 {[%emt 0:01:06]} b5 {[%emt 0:05:33]} 43. axb5 {[%emt 0:00:20]} cxb5 {[%emt 0:00:02]} 44. Bd5 {[%emt 0:02:13]} Ke7 {[%emt 0:01:02]} 45. Bc6 {[%emt 0:00:12]} b4 {[%emt 0:01:25]} 46. Bd5 {[%emt 0:02:57]} Be1 {[%emt 0:00:41]} 47. Ke4 {[%emt 0:03:24]} Bf2 {[%emt 0:00:27]} 48. Bc4 {[%emt 0:00:36]} g6 {[%emt 0:01:36]} 49. f5 {[%emt 0:01:00]} gxf5+ {[%emt 0:03:42]} 50. gxf5 {[%emt 0:00:29]} f6 {[%emt 0:00:37]} 51. e6 {[%emt 0:02:18]} h5 {[%emt 0:00:19]} 52. Kd5 {[%emt 0:00:46]} h4 {[%emt 0:00:36]} 53. Kc6 {[%emt 0:00:20]} Be1 {[%emt 0:00:11]} 54. Kb5 {[%emt 0:00:23]} Bd2 {[%emt 0:00:07]} 55. Kxa5 {[%emt 0:00:07]} Be1 {[%emt 0:00:10]} 1/2-1/2

[Event "29. Klatovy C 2023"]
[Site "Klatovy"]
[Date "2023.07.07"]
[Round "7.5"]
[White "Fiser, Jiri2"]
[Black "Ondrejat, Miroslav"]
[Result "0-1"]
[ECO "B90"]
[WhiteElo "1784"]
[BlackElo "1834"]
[PlyCount "112"]
[EventDate "2023.07.01"]
[EventType "swiss"]
[EventRounds "9"]
[EventCountry "CZE"]
[TimeControl "120+30"]

1. e4 {[%emt 0:00:34]} c5 {[%emt 0:00:40]} 2. Nf3 {[%emt 0:00:04]} d6 {[%emt 0:00:19]} 3. d4 {[%emt 0:00:02]} cxd4 {[%emt 0:00:11]} 4. Nxd4 {[%emt 0:00:00]} Nf6 {[%emt 0:00:12]} 5. Nc3 {[%emt 0:00:06]} a6 {[%emt 0:00:16]} 6. Be3 {[%emt 0:00:02]} e5 {[%emt 0:00:26]} 7. Nb3 {[%emt 0:00:01]} Be6 {[%emt 0:00:44]} 8. Qd2 {[%emt 0:00:02]} Be7 {[%emt 0:02:17]} 9. f4 {[%emt 0:00:11]} Ng4 {[%emt 0:09:11]} 10. f5 {[%emt 0:06:55]} Bxb3 {[%emt 0:02:40]} 11. axb3 {[%emt 0:00:03]} Nxe3 {[%emt 0:00:14]} 12. Qxe3 {[%emt 0:00:02]} Nd7 {[%emt 0:07:17]} 13. Bc4 {[%emt 0:04:42]} O-O {[%emt 0:04:59]} 14. Bd5 {[%emt 0:01:11]} Rb8 {[%emt 0:01:17]} 15. O-O {[%emt 0:03:10]} Qb6 {[%emt 0:02:25]} 16. Rf3 {[%emt 0:05:31]} Bd8 {[%emt 0:05:22]} 17. Qxb6 {[%emt 0:07:26]} Bxb6+ {[%emt 0:00:10]} 18. Kf1 {[%emt 0:00:27]} Nf6 {[%emt 0:00:44]} 19. Ke2 {[%emt 0:18:58]} Rfc8 {[%emt 0:05:25]} 20. Kd2 {[%emt 0:09:32]} Kf8 {[%emt 0:00:15]} 21. Rd3 {[%emt 0:05:58]} Ke7 {[%emt 0:04:13]} 22. Na4 {[%emt 0:13:30]} Ba7 {[%emt 0:00:43]} 23. c4 {[%emt 0:00:16]} Bd4 {[%emt 0:07:17]} 24. Nc3 {[%emt 0:00:17]} Bxc3+ {[%emt 0:03:55]} 25. bxc3 {[%emt 0:00:46]} Nd7 {[%emt 0:04:27]} 26. Kc2 {[%emt 0:03:33]} h5 {[%emt 0:01:35]} 27. Rad1 {[%emt 0:06:04]} Rh8 {[%emt 0:08:09]} 28. b4 {[%emt 0:04:51]} h4 {[%emt 0:01:29]} 29. c5 {[%emt 0:11:52]} dxc5 {[%emt 0:00:41]} 30. Bxf7 {[%emt 0:00:11]} Nf6 {[%emt 0:00:12]} 31. Bd5 {[%emt 0:00:42]} cxb4 {[%emt 0:00:11]} 32. cxb4 {[%emt 0:00:02]} Rbc8+ {[%emt 0:03:52]} 33. Kb3 {[%emt 0:01:06]} Rc7 {[%emt 0:00:27]} 34. g4 {[%emt 0:04:48]} Rd8 {[%emt 0:12:38]} 35. g5 {[%emt 0:01:20]} Nh5 {[%emt 0:00:05]} 36. Rh3 {[%emt 0:05:44]} Nf4 {[%emt 0:04:51]} 37. Rxh4 {[%emt 0:00:06]} Nxd5 {[%emt 0:00:52]} 38. exd5 {[%emt 0:00:18]} Kd6 {[%emt 0:01:43]} 39. f6 {[%emt 0:04:11]} Rf8 {[%emt 0:04:52]} 40. Rf1 {[%emt 0:06:42]} gxf6 {[%emt 0:05:47]} 41. Rh6 {[%emt 0:01:31]} Kxd5 {[%emt 0:00:27]} 42. Rhxf6 {[%emt 0:00:33]} Rh8 {[%emt 0:11:25]} 43. R1f2 {[%emt 0:04:35]} Rch7 {[%emt 0:04:02]} 44. g6 {[%emt 0:00:32]} Rxh2 {[%emt 0:00:12]} 45. Rxh2 {[%emt 0:00:01]} Rxh2 {[%emt 0:00:18]} 46. Rf7 {[%emt 0:02:54]} Rg2 {[%emt 0:02:00]} 47. g7 {[%emt 0:00:02]} b5 {[%emt 0:02:05]} 48. Rd7+ {[%emt 0:00:46]} Ke4 {[%emt 0:00:27]} 49. Ra7 {[%emt 0:00:24]} Rg3+ {[%emt 0:01:08]} 50. Kc2 {[%emt 0:00:01]} Kd4 {[%emt 0:00:19]} 51. Rxa6 {[%emt 0:01:37]} Rxg7 {[%emt 0:00:04]} 52. Rc6 {[%emt 0:01:08]} Rg2+ {[%emt 0:04:10]} 53. Kc1 {[%emt 0:00:01]} e4 {[%emt 0:01:01]} 54. Rd6+ {[%emt 0:00:20]} Kc3 {[%emt 0:00:15]} 55. Kd1 {[%emt 0:00:02]} e3 {[%emt 0:01:43]} 56. Re6 {[%emt 0:01:23]} e2+ {[%emt 0:00:16]} 0-1

[Event "29. Klatovy C 2023"]
[Site "Klatovy"]
[Date "2023.07.07"]
[Round "7.6"]
[White "Skopec, Lubos"]
[Black "Baumruk, Josef"]
[Result "1/2-1/2"]
[ECO "B03"]
[WhiteElo "1824"]
[BlackElo "1947"]
[PlyCount "97"]
[EventDate "2023.07.01"]
[EventType "swiss"]
[EventRounds "9"]
[EventCountry "CZE"]
[TimeControl "120+30"]

1. e4 {[%emt 0:00:01]} Nf6 {[%emt 0:00:12]} 2. e5 {[%emt 0:00:43]} Nd5 {[%emt 0:00:05]} 3. c4 {[%emt 0:00:14]} Nb6 {[%emt 0:00:10]} 4. d4 {[%emt 0:00:07]} d6 {[%emt 0:00:05]} 5. f4 {[%emt 0:01:18]} dxe5 {[%emt 0:02:18]} 6. fxe5 {[%emt 0:00:22]} Nc6 {[%emt 0:00:41]} 7. Be3 {[%emt 0:04:32]} Bf5 {[%emt 0:01:01]} 8. Nc3 {[%emt 0:07:06]} e6 {[%emt 0:00:59]} 9. Nf3 {[%emt 0:02:17]} Be7 {[%emt 0:04:54]} 10. Be2 {[%emt 0:02:03]} O-O {[%emt 0:04:33]} 11. O-O {[%emt 0:00:32]} Rc8 {[%emt 0:05:33]} 12. a3 {[%emt 0:20:36]} f6 {[%emt 0:07:50]} 13. b4 {[%emt 0:10:39]} fxe5 {[%emt 0:04:14]} 14. Nxe5 {[%emt 0:04:24]} Nxe5 {[%emt 0:00:43]} 15. dxe5 {[%emt 0:00:06]} Nd7 {[%emt 0:04:01]} 16. Bf4 {[%emt 0:05:31]} c5 {[%emt 0:06:28]} 17. b5 {[%emt 0:01:01]} Qc7 {[%emt 0:00:42]} 18. Nd5 {[%emt 0:05:24]} exd5 {[%emt 0:08:31]} 19. Qxd5+ {[%emt 0:00:10]} Kh8 {[%emt 0:00:06]} 20. e6 {[%emt 0:01:42]} Nb6 {[%emt 0:00:23]} 21. Bxc7 {[%emt 0:03:26]} Nxd5 {[%emt 0:00:15]} 22. cxd5 {[%emt 0:01:58]} Rxc7 {[%emt 0:07:27]} 23. Rad1 {[%emt 0:12:54]} Bd6 {[%emt 0:04:32]} 24. g4 {[%emt 0:02:31]} Bxe6 {[%emt 0:00:48]} 25. Rxf8+ {[%emt 0:01:35]} Bxf8 {[%emt 0:00:06]} 26. dxe6 {[%emt 0:00:11]} Be7 {[%emt 0:05:01]} 27. Bc4 {[%emt 0:01:50]} h6 {[%emt 0:02:11]} 28. Kg2 {[%emt 0:08:33]} Bf6 {[%emt 0:04:54]} 29. Kf3 {[%emt 0:06:27]} g6 {[%emt 0:04:15]} 30. Ke4 {[%emt 0:00:32]} Kg7 {[%emt 0:00:24]} 31. Kd5 {[%emt 0:12:21]} Be7 {[%emt 0:00:09]} 32. Rf1 {[%emt 0:01:00]} Bf8 {[%emt 0:01:03]} 33. Ke5 {[%emt 0:02:14]} Re7 {[%emt 0:09:43]} 34. Rd1 {[%emt 0:02:58]} Rc7 {[%emt 0:00:27]} 35. Rd7+ {[%emt 0:02:18]} Rxd7 {[%emt 0:00:07]} 36. exd7 {[%emt 0:00:03]} Be7 {[%emt 0:00:15]} 37. Ke6 {[%emt 0:00:37]} Bd8 {[%emt 0:00:13]} 38. Bd5 {[%emt 0:01:03]} b6 {[%emt 0:01:28]} 39. Bc4 {[%emt 0:01:13]} h5 {[%emt 0:01:01]} 40. h3 {[%emt 0:02:28]} hxg4 {[%emt 0:01:40]} 41. hxg4 {[%emt 0:00:05]} g5 {[%emt 0:00:49]} 42. a4 {[%emt 0:03:09]} Kf8 {[%emt 0:00:14]} 43. Kd6 {[%emt 0:00:16]} Kg7 {[%emt 0:00:51]} 44. a5 {[%emt 0:03:31]} bxa5 {[%emt 0:00:26]} 45. Kxc5 {[%emt 0:00:06]} Kf6 {[%emt 0:01:43]} 46. Kd6 {[%emt 0:04:15]} Bb6 {[%emt 0:00:19]} 47. Bb3 {[%emt 0:00:24]} Bd8 {[%emt 0:00:16]} 48. Kc6 {[%emt 0:03:47]} Ke7 {[%emt 0:00:08]} 49. Kb7 {[%emt 0:01:56]} 1/2-1/2

[Event "29. Klatovy C 2023"]
[Site "Klatovy"]
[Date "2023.07.07"]
[Round "7.7"]
[White "Havelka, Petr"]
[Black "Richter, Martin1"]
[Result "1/2-1/2"]
[ECO "E11"]
[WhiteElo "1770"]
[BlackElo "1946"]
[PlyCount "44"]
[EventDate "2023.07.01"]
[EventType "swiss"]
[EventRounds "9"]
[EventCountry "CZE"]
[TimeControl "120+30"]

1. d4 {[%emt 0:00:11]} Nf6 {[%emt 0:00:17]} 2. c4 {[%emt 0:00:32]} e6 {[%emt 0:00:15]} 3. Nf3 {[%emt 0:00:23]} Bb4+ {[%emt 0:00:30]} 4. Bd2 {[%emt 0:00:48]} c5 {[%emt 0:00:27]} 5. dxc5 {[%emt 0:01:18]} Qa5 {[%emt 0:01:15]} 6. a3 {[%emt 0:05:43]} Bxd2+ {[%emt 0:00:15]} 7. Nbxd2 {[%emt 0:00:32]} Qxc5 {[%emt 0:00:27]} 8. e3 {[%emt 0:01:11]} O-O {[%emt 0:00:48]} 9. Be2 {[%emt 0:01:23]} b6 {[%emt 0:00:30]} 10. O-O {[%emt 0:00:46]} Bb7 {[%emt 0:00:31]} 11. b4 {[%emt 0:00:52]} Qe7 {[%emt 0:00:50]} 12. Rc1 {[%emt 0:01:31]} d6 {[%emt 0:03:54]} 13. Qb3 {[%emt 0:06:18]} Nbd7 {[%emt 0:03:34]} 14. Rfd1 {[%emt 0:03:08]} Rfc8 {[%emt 0:07:49]} 15. h3 {[%emt 0:03:20]} d5 {[%emt 0:01:17]} 16. cxd5 {[%emt 0:03:25]} Nxd5 {[%emt 0:02:16]} 17. Qb2 {[%emt 0:05:34]} a6 {[%emt 0:18:09]} 18. Nb3 {[%emt 0:06:26]} Qf6 {[%emt 0:08:38]} 19. Qd2 {[%emt 0:12:30]} Ne5 {[%emt 0:31:58]} 20. Rxc8+ {[%emt 0:06:23]} Rxc8 {[%emt 0:00:11]} 21. Nxe5 {[%emt 0:16:44]} Qxe5 {[%emt 0:00:31]} 22. Bf3 {[%emt 0:10:27]} Qc3 {[%emt 0:16:23]} 1/2-1/2

[Event "29. Klatovy C 2023"]
[Site "Klatovy"]
[Date "2023.07.08"]
[Round "8.1"]
[White "Chalus, Karel"]
[Black "Sedlak, Ludek"]
[Result "1/2-1/2"]
[ECO "B01"]
[WhiteElo "1975"]
[BlackElo "1885"]
[PlyCount "46"]
[EventDate "2023.07.01"]
[EventType "swiss"]
[EventRounds "9"]
[EventCountry "CZE"]
[TimeControl "120+30"]

1. e4 {[%emt 0:00:02]} d5 {[%emt 0:00:13]} 2. exd5 {[%emt 0:00:18]} Qxd5 {[%emt 0:00:17]} 3. Nc3 {[%emt 0:00:00]} Qd6 {[%emt 0:00:00]} 4. d4 {[%emt 0:00:00]} Nf6 {[%emt 0:00:00]} 5. Nf3 {[%emt 0:25:20]} c6 {[%emt 0:01:05]} 6. h3 {[%emt 0:03:24]} Bf5 {[%emt 0:02:35]} 7. Bc4 {[%emt 0:11:34]} e6 {[%emt 0:01:20]} 8. Qe2 {[%emt 0:05:34]} Be7 {[%emt 0:02:25]} 9. O-O {[%emt 0:03:53]} O-O {[%emt 0:08:05]} 10. a4 {[%emt 0:02:08]} a5 {[%emt 0:09:32]} 11. Re1 {[%emt 0:08:43]} Re8 {[%emt 0:10:10]} 12. b3 {[%emt 0:08:08]} Qd8 {[%emt 0:05:02]} 13. Nd1 {[%emt 0:03:02]} Na6 {[%emt 0:08:39]} 14. c3 {[%emt 0:02:01]} Nc7 {[%emt 0:01:33]} 15. Ne5 {[%emt 0:04:21]} Nfd5 {[%emt 0:01:06]} 16. Bd3 {[%emt 0:04:22]} Bxd3 {[%emt 0:19:47]} 17. Qxd3 {[%emt 0:01:01]} Bg5 {[%emt 0:04:26]} 18. Qf3 {[%emt 0:03:39]} Rf8 {[%emt 0:00:50]} 19. Qg3 {[%emt 0:03:12]} Bxc1 {[%emt 0:01:00]} 20. Rxc1 {[%emt 0:00:07]} Ne7 {[%emt 0:09:56]} 21. Re4 {[%emt 0:04:51]} Nf5 {[%emt 0:01:08]} 22. Qd3 {[%emt 0:01:13]} Nd5 {[%emt 0:00:47]} 23. Nb2 {[%emt 0:01:57]} Qg5 {[%emt 0:01:28]} 1/2-1/2

[Event "29. Klatovy C 2023"]
[Site "Klatovy"]
[Date "2023.07.08"]
[Round "8.2"]
[White "Turner, Radek"]
[Black "Pribyl, Josef"]
[Result "0-1"]
[ECO "A25"]
[WhiteElo "1991"]
[BlackElo "2230"]
[PlyCount "108"]
[EventDate "2023.07.01"]
[EventType "swiss"]
[EventRounds "9"]
[EventCountry "CZE"]
[TimeControl "120+30"]

1. c4 {[%emt 0:00:09]} e5 {[%emt 0:00:06]} 2. g3 {[%emt 0:00:06]} Nc6 {[%emt 0:00:29]} 3. Nc3 {[%emt 0:00:11]} Bb4 {[%emt 0:00:05]} 4. Nd5 {[%emt 0:00:15]} a5 {[%emt 0:00:03]} 5. Bg2 {[%emt 0:00:16]} Nge7 {[%emt 0:00:26]} 6. e3 {[%emt 0:00:37]} Nxd5 {[%emt 0:00:41]} 7. cxd5 {[%emt 0:00:10]} Ne7 {[%emt 0:00:02]} 8. Ne2 {[%emt 0:00:34]} c6 {[%emt 0:00:27]} 9. a3 {[%emt 0:07:06]} Bd6 {[%emt 0:00:29]} 10. Nc3 {[%emt 0:01:31]} O-O {[%emt 0:03:38]} 11. d4 {[%emt 0:01:57]} Qb6 {[%emt 0:04:16]} 12. Ne4 {[%emt 0:06:03]} cxd5 {[%emt 0:03:22]} 13. Nxd6 {[%emt 0:00:34]} Qxd6 {[%emt 0:00:02]} 14. dxe5 {[%emt 0:00:08]} Qxe5 {[%emt 0:00:02]} 15. O-O {[%emt 0:00:16]} d6 {[%emt 0:03:30]} 16. Qd4 {[%emt 0:07:31]} Qxd4 {[%emt 0:02:02]} 17. exd4 {[%emt 0:00:06]} Be6 {[%emt 0:00:09]} 18. Bd2 {[%emt 0:01:40]} Rfc8 {[%emt 0:04:51]} 19. Rac1 {[%emt 0:01:05]} Nc6 {[%emt 0:08:11]} 20. Be3 {[%emt 0:01:15]} Ra6 {[%emt 0:01:37]} 21. Rfd1 {[%emt 0:03:18]} Rb6 {[%emt 0:00:32]} 22. Rd2 {[%emt 0:00:17]} Kf8 {[%emt 0:01:02]} 23. f4 {[%emt 0:01:46]} Rb3 {[%emt 0:04:40]} 24. Re1 {[%emt 0:01:03]} Ne7 {[%emt 0:01:08]} 25. f5 {[%emt 0:06:29]} Nxf5 {[%emt 0:04:05]} 26. Bf4 {[%emt 0:00:19]} Rc6 {[%emt 0:01:22]} 27. Kf2 {[%emt 0:18:08]} h6 {[%emt 0:11:35]} 28. g4 {[%emt 0:08:17]} Nh4 {[%emt 0:03:22]} 29. Bh1 {[%emt 0:00:32]} g5 {[%emt 0:00:52]} 30. Bg3 {[%emt 0:00:51]} Rcb6 {[%emt 0:05:48]} 31. Re3 {[%emt 0:01:28]} Rxe3 {[%emt 0:05:15]} 32. Kxe3 {[%emt 0:00:08]} Ke7 {[%emt 0:02:00]} 33. b4 {[%emt 0:05:15]} axb4 {[%emt 0:00:20]} 34. Rb2 {[%emt 0:00:11]} b3 {[%emt 0:02:03]} 35. Bxh4 {[%emt 0:00:28]} gxh4 {[%emt 0:00:04]} 36. Bf3 {[%emt 0:01:21]} f5 {[%emt 0:05:28]} 37. gxf5 {[%emt 0:01:32]} Bxf5 {[%emt 0:00:01]} 38. Bxd5 {[%emt 0:06:20]} Bc2 {[%emt 0:05:33]} 39. Kd2 {[%emt 0:01:02]} Kf6 {[%emt 0:00:29]} 40. Kc3 {[%emt 0:00:57]} Kf5 {[%emt 0:00:43]} 41. a4 {[%emt 0:00:21]} Kg4 {[%emt 0:02:02]} 42. a5 {[%emt 0:01:31]} Rb5 {[%emt 0:00:35]} 43. Be6+ {[%emt 0:01:11]} Kf3 {[%emt 0:02:54]} 44. Bc4 {[%emt 0:00:33]} Rxa5 {[%emt 0:01:29]} 45. Bxb3 {[%emt 0:00:20]} Bxb3 {[%emt 0:02:00]} 46. Rxb3 {[%emt 0:00:07]} Kg2 {[%emt 0:01:14]} 47. h3 {[%emt 0:00:06]} Rg5 {[%emt 0:01:02]} 48. Kc4 {[%emt 0:00:18]} b5+ {[%emt 0:00:40]} 49. Kb4 {[%emt 0:00:57]} Rg3 {[%emt 0:00:48]} 50. Rb2+ {[%emt 0:00:08]} Kxh3 {[%emt 0:00:14]} 51. Kxb5 {[%emt 0:00:07]} Kg4 {[%emt 0:01:20]} 52. d5 {[%emt 0:00:09]} h3 {[%emt 0:00:30]} 53. Kc6 {[%emt 0:00:27]} Rg2 {[%emt 0:00:20]} 54. Rb4+ {[%emt 0:00:19]} Kg5 {[%emt 0:00:34]} 0-1